Cogmind - Beta 12 @@@ ROGUE MODE // 2023.10.13 @ 14:49:08 Player: Figgis Result: Destroyed by as-34258 with Assembled F-torch Performance ------------- Evolutions (0) 0 Regions Visited (4) 800 Robots Destroyed (34) 170 Value Destroyed (927) 927 Prototype IDs (24) 480 Alien Tech Used (0) 0 Bonus (307) 307 TOTAL SCORE: 2684 Bonus ------- Follower Combat Kills 7 Aligned with FarCom 300 Cogmind --------- Core Integrity 0/250 Matter 295/300 Energy 208/275 System Corruption 3% Temperature Cool (14) Movement Walking (190) Ox1 Location -9/Mines Parts ------- > --- POWER (1) -------- Deuterium Engine > --- PROPULSION (2) --- Improved Aluminum Leg Improved Aluminum Leg > --- UTILITY (2) ------ Large Storage Unit Shield Generator > --- WEAPON (2) ------- Advanced Beam Cannon > --- INVENTORY (15) --- Nuclear Core Aluminum Leg Improved Aluminum Leg Improved Aluminum Leg Carbon-fiber Leg Carbon-fiber Leg Potential Leg Potential Leg High-capacity Matter Pod (200) Hardened Light Armor Plating Hardened Medium Armor Plating PSU Rigger AWS/Autocannon Peak State ------------ > --- POWER ------------ Deuterium Engine > --- PROPULSION ------- Potential Leg Potential Leg > --- UTILITY ---------- Large Storage Unit Light Armor Plating > --- WEAPON ----------- Advanced Beam Cannon Advanced Beam Cannon > --- INVENTORY -------- Nuclear Core Aluminum Leg Improved Aluminum Leg Improved Aluminum Leg Improved Aluminum Leg Improved Aluminum Leg Carbon-fiber Leg Carbon-fiber Leg High-capacity Matter Pod Hardened Medium Armor Plating PSU Rigger AWS/Autocannon [Rating: 37] Favorites ----------- Power Deuterium Engine Engine Deuterium Engine Propulsion Aluminum Leg Leg Aluminum Leg Utility Light Armor Plating Device Structural Scanner Storage Large Storage Unit Protection Light Armor Plating Weapon Advanced Beam Cannon Energy Gun Medium Laser Energy Cannon Advanced Beam Cannon Ballistic Gun Assault Rifle Build | -11 -10 -10 -10 -9 ------- Run | Jun Mat Min Exi Min Slots Evolved . | . . . . . Power . | . . . . . Propulsion . | . . . . . Utility . | . . . . . Weapon . | . . . . . Parts Attached 33 | 6 15 4 4 4 Power 3 | 1 1 1 . . Engine 3 | 1 1 1 . . Core . | . . . . . Reactor . | . . . . . Propulsion 16 | 2 7 3 2 2 Treads . | . . . . . Leg 16 | 2 7 3 2 2 Wheel . | . . . . . Hover . | . . . . . Flight . | . . . . . Utility 8 | 1 5 . . 2 Device 2 | . 1 . . 1 Storage 4 | 1 3 . . . Processor . | . . . . . Hackware . | . . . . . Protection 2 | . 1 . . 1 Artifact . | . . . . . Weapon 6 | 2 2 . 2 . Energy Gun 1 | 1 . . . . Energy Cannon 4 | . 2 . 2 . Ballistic Gun 1 | 1 . . . . Ballistic Cannon . | . . . . . Launcher . | . . . . . Special Weapon . | . . . . . Impact Weapon . | . . . . . Slashing Weapon . | . . . . . Piercing Weapon . | . . . . . Special Melee Weapon . | . . . . . Unidentified Prototypes 1 | . 1 . . . Parts Lost 1 | . . . . 1 Power . | . . . . . Propulsion . | . . . . . Utility . | . . . . . Weapon 1 | . . . . 1 Highest Loss Streak 1 | . . . . 1 To Critical Strikes . | . . . . . Average Slot Usage (%) 99 | . 99 100 98 100 Engine 14 | . 14 14 14 14 Leg 28 | . 28 28 28 28 Device 1 | . 6 . . . Storage 14 | . 14 14 14 14 Protection 12 | . 7 14 14 14 Energy Cannon 26 | . 23 28 26 28 Naked Turns . | . . . . . Heaviest Build 42 | 12 36 40 40 42 Greatest Support 60 | 20 20 25 60 26 Greatest Overweight (x) 1 | . 1 1 1 1 Average Overweight (x) . | . . 1 . 1 Largest Inventory Capacity 20 | 8 20 15 15 15 Average Capacity 13 | 6 8 15 15 15 Most Carried 15 | 5 9 15 15 15 Average Carried 12 | 2 7 14 12 14 Final Capacity 15 | 8 15 15 15 15 Final Carried 15 | 2 8 15 14 15 Class Distribution -------------------- 100% | Mutant Dominant Class ---------------- Mutant | -10/Materials Mutant | -10/Mines Mutant | -10/Exiles Mutant | -9/Mines Resources | -11 -10 -10 -10 -9 ----------- Run | Jun Mat Min Exi Min Matter Collected 556 | 260 162 64 40 30 Remotely . | . . . . . Salvage Created 1185 | . 455 455 117 158 Parts 52 | . 20 13 5 14 Haulers Intercepted . | . . . . . Recyclers Shooed . | . . . . . Parts Field Recycled . | . . . . . Retrieved Matter . | . . . . . Parts Self-Destructed . | . . . . . Prevented . | . . . . . Kills | -11 -10 -10 -10 -9 ------- Run | Jun Mat Min Exi Min Combat Hostiles Destroyed 30 | . 13 8 4 5 Guns 4 | . 4 . . . Cannons 26 | . 9 8 4 5 Classes Destroyed 7 | . 3 2 2 . Worker 1 | . . 1 . . Recycler 2 | . . 1 . 1 Watcher 1 | . 1 . . . Swarmer 10 | . 5 . 1 4 Grunt 18 | . 8 8 1 1 Demolisher 1 | . . . 1 . Hunter 1 | . . . 1 . Best Kill Streak 5 | . 4 3 2 5 Combat Bots Only 4 | . 4 2 2 4 Max Kills in Single Turn 1 | . 1 1 1 1 Gunslinging . | . . . . . Exploded . | . . . . . Melee . | . . . . . Uniques/NPCs Destroyed . | . . . . . Combat | -11 -10 -10 -10 -9 -------- Run | Jun Mat Min Exi Min Damage Taken 1252 | . 384 263 54 551 Core 252 | . 55 75 14 108 Absorbed by Shields 22 | . . . . 22 Core Remaining (%) 100 | 100 . . . . Volleys Fired 114 | . 58 31 8 17 Largest 2 | . 2 1 2 2 Hottest 136 | . 136 68 136 136 Shots Fired 143 | . 76 31 16 20 Gun 22 | . 22 . . . Cannon 121 | . 54 31 16 20 Launcher . | . . . . . Special . | . . . . . Kinetic 12 | . 12 . . . Thermal 131 | . 64 31 16 20 Explosive . | . . . . . Electromagnetic . | . . . . . Robot Hit Streak 8 | . 6 8 8 6 Robot Miss Streak 7 | . 6 7 6 2 Penetration Max . | . . . . . Secondary Targets . | . . . . . Shots Hit Robots 77 | . 35 24 6 12 Core Hits 40 | . 16 14 4 6 Critical Kills . | . . . . . Critical Parts Destroyed . | . . . . . Critical Strikes . | . . . . . Melee Attacks . | . . . . . Impact . | . . . . . Slashing . | . . . . . Piercing . | . . . . . Sneak Attacks . | . . . . . Combat Hostiles . | . . . . . Follow-up Attacks . | . . . . . Damage Inflicted 1692 | . 733 504 177 278 Guns 138 | . 138 . . . Cannons 1549 | . 595 499 177 278 Explosions . | . . . . . Melee . | . . . . . Ramming 5 | . . 5 . . Kinetic 86 | . 86 . . . Thermal 1601 | . 647 499 177 278 Explosive . | . . . . . Electromagnetic . | . . . . . Impact . | . . . . . Slashing . | . . . . . Piercing . | . . . . . Highest Corruption 3 | . . . . 3 Average Corruption 3 | . . . . 3 Corruption Purged . | . . . . . Corruption Blocked . | . . . . . Overload Shots . | . . . . . Overflow Damage 35 | . 20 . . 15 Projectiles 35 | . 20 . . 15 Explosions . | . . . . . Melee . | . . . . . Knockbacks . | . . . . . Impact . | . . . . . Kinetic . | . . . . . Secondary . | . . . . . Self-Inflicted Damage . | . . . . . Shots . | . . . . . Rammed . | . . . . . Targets Rammed 1 | . . 1 . . Kicked 1 | . . 1 . . Crushed . | . . . . . Highest Temperature 382 | . 309 329 278 382 Average Temperature 138 | . 97 157 142 202 Received Heat Transfer 502 | . 135 168 12 187 Effects 4 | . . . . 4 Energy Bleed 1 | . . . . 1 Interference 2 | . . . . 2 Damage (minor) 1 | . . . . 1 Siege Activations . | . . . . . Robots Corrupted . | . . . . . Combat Hostiles . | . . . . . Parts Fried . | . . . . . Impact Corruptions . | . . . . . Robots Melted . | . . . . . Combat Hostiles . | . . . . . Parts Melted 4 | . 2 1 . 1 Heat Transferred 2812 | . 1147 888 296 481 Parts Sabotaged . | . . . . . Parts Stolen . | . . . . . Parts Stripped . | . . . . . Power Chain Reactions . | . . . . . Missiles Intercepted . | . . . . . Alert | -11 -10 -10 -10 -9 ------- Run | Jun Mat Min Exi Min Peak Influence 327 | . 327 193 . 95 Initial 33 | . . 33 . . Average 66 | . 149 23 . 69 Maximum Alert Level 1 | . 1 . . . Low Security (%) 95 | 100 83 100 . 100 Level 1 4 | . 16 . . . Level 2 . | . . . . . Level 3 . | . . . . . Level 4 . | . . . . . Level 5 . | . . . . . High Security . | . . . . . Max Security . | . . . . . Squads Dispatched 2 | . 2 . . . Investigation . | . . . . . Extermination . | . . . . . Reinforcement 2 | . 2 . . . Assault . | . . . . . Garrison . | . . . . . Intercept . | . . . . . Searches Triggered . | . . . . . Construction Impeded . | . . . . . Haulers Reinforced . | . . . . . Active Scanning Responses . | . . . . . Cargo Convoy Interrupts . | . . . . . Stealth | -11 -10 -10 -10 -9 --------- Run | Jun Mat Min Exi Min Distress Signals 1 | . 1 . . . Communications Jammed . | . . . . . Distress Signals . | . . . . . Times Spotted 53 | . 22 8 8 15 Peak Tracking Total 9 | . 4 2 6 9 Tactical Retreats 4 | . 2 . 2 . Traps | -11 -10 -10 -10 -9 ------- Run | Jun Mat Min Exi Min Traps Triggered . | . . . . . Indirectly . | . . . . . Trap Hack Attempts . | . . . . . Triggered . | . . . . . Disarmed . | . . . . . Reprogrammed . | . . . . . Reused . | . . . . . Traps Extracted . | . . . . . Installed . | . . . . . Triggered . | . . . . . Machines | -11 -10 -10 -10 -9 ---------- Run | Jun Mat Min Exi Min Machines Disabled 1 | . . . 1 . Max in Single Turn 1 | . . . 1 . Machines Repaired . | . . . . . Machines Sabotaged . | . . . . . Overloaded Fab Kills . | . . . . . Hacking | -11 -10 -10 -10 -9 --------- Run | Jun Mat Min Exi Min Machines Accessed 5 | . 1 1 3 . Terminals 1 | . 1 . . . Fabricators . | . . . . . Repair Stations . | . . . . . Recycling Units . | . . . . . Scanalyzers . | . . . . . Garrison Access . | . . . . . Total Hacks 7 | . 3 1 3 . Successful 7 | . 3 1 3 . Failed . | . . . . . Catastrophic . | . . . . . Database Lockouts . | . . . . . Manual 3 | . 2 . 1 . Terminals 3 | . 3 . . . Fabricators . | . . . . . Repair Stations . | . . . . . Recycling Units . | . . . . . Scanalyzers . | . . . . . Garrison Access . | . . . . . Terminal Hacks 7 | . 3 1 3 . Record 2 | . . . 2 . Robot Analysis 2 | . 2 . . . Open Door 1 | . . 1 . . Branch Access Points 1 | . 1 . . . EX-Prototype ID Bank 1 | . . . 1 . Fabricator Hacks . | . . . . . Repair Station Hacks . | . . . . . Recycling Unit Hacks . | . . . . . Scanalyzer . | . . . . . Garrison Access Hacks . | . . . . . Unauthorized Hacks . | . . . . . Terminals . | . . . . . Fabricators . | . . . . . Repair Stations . | . . . . . Recycling Units . | . . . . . Scanalyzers . | . . . . . Garrison Access . | . . . . . Data Cores Recovered . | . . . . . Used . | . . . . . Hacking Detections 1 | . 1 . . . Full Trace Events . | . . . . . Feedback Events . | . . . . . Feedback Blocked . | . . . . . Robot Schematics Acquired . | . . . . . Robots Built . | . . . . . Authchips . | . . . . . Time . | . . . . . Total Robot Build Rating . | . . . . . Part Schematics Acquired . | . . . . . Parts Built . | . . . . . Authchips . | . . . . . Time . | . . . . . Total Part Build Rating . | . . . . . Parts Repaired . | . . . . . Time . | . . . . . Parts Recycled . | . . . . . Recycled Matter . | . . . . . Retrieved Matter . | . . . . . Retrieved Components . | . . . . . Parts Scanalyzed . | . . . . . Part Schematics Acquired . | . . . . . Parts Damaged . | . . . . . Bothacking | -11 -10 -10 -10 -9 ------------ Run | Jun Mat Min Exi Min Used RIF Installer . | . . . . . Robots Hacked . | . . . . . Non-combat . | . . . . . Combat . | . . . . . Robot Hacks Applied . | . . . . . Relay Couplers Released . | . . . . . Fabnet Peak Effective % . | . . . . . Robots Rewired . | . . . . . Allies Hacked . | . . . . . Hacks Repelled . | . . . . . Allies | -11 -10 -10 -10 -9 -------- Run | Jun Mat Min Exi Min Total Allies 3 | . . 3 . . Largest Group 3 | . . 3 3 . Highest-Rated Group 40 | . . 40 40 . Highest-Rated Ally 16 | . . 16 16 . Total Orders . | . . . . . Ally Attacks 21 | . . . 21 . Total Damage 173 | . . . 173 . Kills 1 | . . . 1 . Allies Corrupted . | . . . . . Allies Melted . | . . . . . Intel | -11 -10 -10 -10 -9 ------- Run | Jun Mat Min Exi Min Robot Analysis Total 2 | . 2 . . . Derelict Logs Recovered 3 | . . 1 . 2 Drone Launches . | . . . . . Drone Recoveries . | . . . . . Exploration | -11 -10 -10 -10 -9 ------------- Run | Jun Mat Min Exi Min Turns Passed 4725 | 60 972 1827 1289 577 Spaces Moved 2400 | 45 497 843 758 257 Core 10 | 10 . . . . Treads . | . . . . . Legs 2390 | 35 497 843 758 257 Wheels . | . . . . . Hover . | . . . . . Flight . | . . . . . Fastest Speed 50 | 50 120 190 90 190 Average Speed 172 | 104 153 190 162 190 Slowest Speed 190 | 120 190 190 190 190 Overloaded Moves . | . . . . . Propulsion Burnouts . | . . . . . Robots Hopped . | . . . . . Cave-ins Triggered . | . . . . . Exploration Rate (%) 58 | 3 66 99 74 49 Regions Visited 4 Branch Regions 3 Pre-discovered Areas 4 | . . 1 1 2 Known Exits Taken 1 | . 1 . . . Unknown Exits Taken 3 | 1 . 1 1 . Scrap Searched 4 | . . 2 . 2 Spaces Dug . | . . . . . Terrain Destroyed . | . . . . . Melee . | . . . . . Projectile . | . . . . . AOE . | . . . . . Terrain Rammed . | . . . . . Walls Destroyed . | . . . . . Machines Disabled . | . . . . . Actions | -11 -10 -10 -10 -9 --------- Run | Jun Mat Min Exi Min Total 2854 | 57 630 1038 805 324 Wait 228 | . 37 147 . 44 Move 2396 | 44 496 842 757 257 Hop . | . . . . . Pick Up 45 | 7 12 9 16 1 Fast Attach 3 | 1 2 . . . Attach 8 | 5 1 . 2 . Detach . | . . . . . Swap 22 | . 12 4 2 4 Drop 37 | . 12 4 20 1 Fire 114 | . 58 31 8 17 Melee . | . . . . . Ram . | . . . . . Kick 1 | . . 1 . . Crush . | . . . . . Escape Stasis . | . . . . . Rewire . | . . . . . Trap . | . . . . . Miscellaneous . | . . . . . Route ------- -11/Junkyard -10/Materials (discovered 3 exits: [*Mat x2] / *Min) -10/Mines (discovered 3 exits: [*Mat x2] / *Exi) -10/Exiles (discovered 2 exits: [*Min x2]) -9/Mines (discovered 1 exit: [*Mat]) History --------- Turn | Location | Event 2 | -11/Junkyard | Met Revision 17 22 | -11/Junkyard | Discovered new exit (range 14) 61 | -11/Junkyard | Entered Materials 98 | -10/Materials | Identified exit to Mines 301 | -10/Materials | Discovered new exit (range 5) 315 | -10/Materials | Build established: Mutant 617 | -10/Materials | Discovered new exit (range 16) 1033 | -10/Materials | Entered Mines 1038 | -10/Mines | Met a Derelict who couldn't figure out how to use a Trap Extractor 1147 | -10/Mines | Learned location of Zion (-7) 1526 | -10/Mines | Discovered new exit (range 5) 1568 | -10/Mines | Discovered new exit (range 7) 1587 | -10/Mines | Core integrity fell below 50% 1893 | -10/Mines | Assisted by bots powering up and referring to "LRC-V3" 2484 | -10/Mines | Deemed a non-threat by the Exiles lab entrance 2486 | -10/Mines | Discovered new exit (range 5) 2860 | -10/Mines | Entered Exiles 2860 | -10/Exiles | Accompanied by 3 allies 2893 | -10/Exiles | Discovered new exit (range 15) 3059 | -10/Exiles | Met 8R-AWN 3095 | -10/Exiles | Met EX-HEX 3329 | -10/Exiles | Met EX-DEC 3775 | -10/Exiles | Met EX-BIN 3863 | -10/Exiles | Aligned with FarCom system 3865 | -10/Exiles | Given EX-Vault access code 3908 | -10/Exiles | Opened EX-Vault 3926 | -10/Exiles | Found AWS/Autocannon 3931 | -10/Exiles | Found Potential Leg 3934 | -10/Exiles | Found Potential Leg 3939 | -10/Exiles | Found PSU Rigger 3965 | -10/Exiles | Exiles lab attacked by MAIN.C 4139 | -10/Exiles | Discovered new exit (range 12) 4149 | -10/Exiles | Stole three prototypes: Potential Leg, PSU Rigger, AWS/Autocannon 4149 | -10/Exiles | Entered Mines 4178 | -9/Mines | Discovered new exit (range 11) 4240 | -9/Mines | Learned location of Storage (-7) 4356 | -9/Mines | Received a Rocket Launcher from a helpful Derelict 4486 | -9/Mines | Joined a pair of Derelicts in attacking an 0b10 outpost 4606 | -9/Mines | Core integrity fell below 20% 4699 | -9/Mines | Assembled infested the area 4704 | -9/Mines | Assisted by a Guerilla fighting off Assembled 4726 | -9/Mines | Destroyed by as-34258 with Assembled F-torch Last Messages --------------- 04596_ Overheating: Adv. Beam Cannon damaged (-55). 04605_ Destroyed Lgt. Nuclear Core. 04615_ G-34 Mercenary destroyed. 04623_ G-47 Trooper destroyed. 04627_ Overheating: System interference. 04627_ Adv. Beam Cannon temporarily disabled. 04699_ ALERT: Infestation in the mines, dispatching Demolisher response squad. 04711_ AM-PHS destroyed. 04712_ 21-TS3(h): "I'll hold them off! Go on ahead or try to find another way!" 04712_ Matter Pump disabled. 04714_ HV Slug penetrates Matter Pump. 04718_ 21-TS3(h) suffers critical hit (Destroy). 04718_ 21-TS3(h) shuts down. 04720_ as-56704 sneak attacks. 04720_ 21-TS3(h) knocked back. 04720_ 21-TS3(h) destroyed. 04721_ Adv. Beam Cannon destroyed. 04721_ System corrupted by crushing effect (+3). Map ----- +----------------------------------------------------+ | #### #??????????????????????????????????????? | | #?? #?????????????????????????????????????? | | #?? < #????????????????????????????????????? | | #??? #???????????????????????????????????? | | ##??? ???????????????????????????????????? | | ##????? ????????????????????????????????????? | | ##???????##??????????????????????????????????????? | | #????????????????????????????????????????????????? | | #????????????????????????????????????????????????? | | #????????????????????????????????????????????????? | | ################?????????????????????????????????? | | ]#?????????????????????????????????? | | ############## #?????????????????????????????????? | | ?????????????# #?????????????????????????????????? | | ??????####??## ##??????#########?????????????????? | | ?????## #### ##?????# #?????????????????? | | ?????# ####### """ #?????????????????? | | ?????# #####[%= """ #?????????????????? | | ?????# ##???# ### # """ #?????????????????? | | ?????# ##????# #?# # #?????????????????? | | ?????# ##?????# #?# #########?????????????????? | | ?????# ##??????# #?# #?????????????????????????? | | ?????# ##???????# #?# #?????????????????????????? | | ?????# #????????# #?# ###???????????????????????? | | ????## ##########=### ##??????????????????????? | | ???## [%## @##?????????????????????? | | ???# #########!### a##???????###??????????? | | ??## ######## aa###???## ##?????????? | | ### #### %%a ##??# #?????????? | | # #########??## "aa ##?# ##????????? | | # ##???????????## "%% ### ##???????? | | + ##?????????????# a""" ## #???????? | | + ##?????????????## a ### #?????? | | # ##?????????????# % #?????? ? | | # #????????????# ## a##?????????? | | ## #???????????# #### ##??????????????? | | # #???????????# #??####???????????????? | | ##???????????## #?????????????????????? | | #####?????????????### ?????????????????????? | | ##???????????????????## ##????????????????????? | | ###?????????????????????####?????????????????????? | | ?????????????????????????????????????????????????? | | ?????????????????????????????????????????????????? | | ?????????????????????????????????????????????????? | | ?????????????????????????????????????????????????? | | ?????????????????????????????????????????????????? | | | | | | | | | +----------------------------------------------------+ Best States ------------- Heat Dissipation 25 Energy Generation 14 Energy Capacity 275 Matter Stores 300 Matter Capacity 300 Sight Range 16 Terrain Scan Density 10 Armor Coverage 150 Evasion (%) 57 Item Schematics ----------------- None Robot Schematics ------------------ None Fabricated ------------ Nothing Alien Tech Used ----------------- None Achievements -------------- None Challenges ------------ None Game ------ Seed ImprinterAuthchipMultirail Manual? 0 Play Time 00:22:14 Cumulative 51.2 hours Start 2023.10.13 @ 14:26:04 End 2023.10.13 @ 14:49:08 Sessions 1 Manual Loads 0 Difficulty Rogue Special Mode None Game No. 93 Rogue 90 Adventurer 3 Explorer 0 Win Type - Total 0 Types 0/0/0/0/0/0/0/0/0 Lore% 28 Gallery% 45 Achievement% 33 Wizard Run 0 Options --------- ASCII 0 Keyboard 0 Movement Mouse Keybinds 0 Fullscreen 2 Font 18/SmallcapsGlow Map View 76x50 Tactical HUD 1 Map Filters NONE Filters NONE Steam 1 RUN: 00098e45-9d46-4d8e-af34-959b4e7cb751